fUST/lending_fUST_20240324
["ID","MTS","AMOUNT","RATE_DAILY","PERIOD"]
[320327751,1711293033580,-177.750556,0.00025734,2]
[320327752,1711293033589,-1000.0,0.00025753,2]
[320327753,1711293033599,-512.0,0.00025774,2]
[320327754,1711293033608,-624.82,0.00025774,2]
[320327755,1711293033617,-4082.17,0.00025775,2]
[320327756,1711293033627,-807.26,0.00025775,2]
[320327757,1711293033636,-500.0,0.00025775,2]
[320327758,1711293033645,-500.0,0.00025775,2]
[320327759,1711293033654,-892.04,0.00025775,2]
[320327760,1711293033663,-500.0,0.00025775,2]
[320327761,1711293033672,-2111.63,0.00025775,2]
[320327762,1711293033681,-593.12762625,0.00025776,2]
[320327763,1711293033690,-596.93363088,0.00025811,2]
[320327764,1711293033699,-500.0,0.00025911,2]
[320327765,1711293033708,-4302.62,0.00025911,2]
[320327766,1711293033718,-500.0,0.00025911,2]
[320327767,1711293033727,-154.93802479,0.00026,2]
[320327768,1711293033736,-1000.0,0.00026027,2]
[320327769,1711293033745,-512.0,0.00026048,2]
[320327770,1711293033754,-624.82,0.00026048,2]
[320327771,1711293033763,-4082.17,0.00026049,2]
[320327772,1711293033772,-807.26,0.00026049,2]
[320327773,1711293033781,-500.0,0.00026049,2]
[320327774,1711293033790,-500.0,0.00026049,2]
[320327775,1711293033800,-892.04,0.00026049,2]
[320327776,1711293033812,-500.28427058,0.00026049,2]
[320327777,1711293033822,-2111.63,0.00026049,2]
[320327778,1711293033830,-194.35359503,0.00026101,2]
[320327779,1711293033841,-500.0,0.00026185,2]
[320327780,1711293033849,-4302.62,0.00026185,2]
[320327781,1711293033858,-233.9,0.00026185,2]
[320327782,1711293033867,-1000.0,0.00026301,2]
[320327783,1711293033877,-576.24680904,0.00026321,2]
[320327784,1711293033887,-2378.53524744,0.00026321,2]
[320327785,1711293033896,-298.6041241,0.00026322,2]
[320327786,1711293033905,-512.0,0.00026322,2]
[320327787,1711293033914,-624.82,0.00026322,2]
[320327788,1711293033923,-4082.17,0.00026323,2]
[320327789,1711293033932,-807.26,0.00026323,2]
[320327790,1711293033941,-589.37615155,0.00026323,2]
[320327791,1711293033951,-500.0,0.00026323,2]
[320327792,1711293033959,-892.04,0.00026323,2]
[320327793,1711293033968,-2111.63,0.00026323,2]
[320327794,1711293033979,-178.791803,0.00026361,2]
[320327795,1711293033988,-177.750556,0.00026361,2]
[320327796,1711293033997,-500.0,0.00026459,2]
[320327797,1711293034006,-4302.62,0.00026459,2]
[320327798,1711293034015,-1000.0,0.00026575,2]
[320327799,1711293034024,-512.0,0.00026596,2]
[320327800,1711293034033,-624.82,0.00026596,2]
[320327801,1711293034042,-4082.17,0.00026597,2]
[320327802,1711293034052,-807.26,0.00026597,2]
[320327803,1711293034061,-500.0,0.00026597,2]
[320327804,1711293034070,-892.04,0.00026597,2]
[320327805,1711293034079,-2111.63,0.00026597,2]
[320327806,1711293034088,-500.0,0.00026692,2]
[320327807,1711293034097,-500.0,0.00026733,2]
[320327808,1711293034106,-4302.62,0.00026733,2]
[320327809,1711293034115,-500.0,0.00026849,2]
[320327810,1711293034124,-512.0,0.0002687,2]
[320327811,1711293034133,-624.82,0.0002687,2]
[320327812,1711293034142,-4082.17,0.00026871,2]
[320327813,1711293034151,-807.26,0.00026871,2]
[320327814,1711293034161,-231.03,0.00026871,2]
[320327815,1711293034169,-892.04,0.00026871,2]
[320327816,1711293034179,-2111.63,0.00026871,2]
[320327817,1711293034189,-1619.429426,0.00027,2]
[320327818,1711293034198,-500.0,0.00027007,2]
[320327819,1711293034207,-4302.62,0.00027007,2]
[320327820,1711293034216,-512.0,0.00027144,2]
[320327821,1711293034225,-624.82,0.00027144,2]
[320327822,1711293034234,-4082.17,0.00027145,2]
[320327823,1711293034243,-807.26,0.00027145,2]
[320327824,1711293034252,-892.04,0.00027145,2]
[320327825,1711293034261,-2111.63,0.00027145,2]
[320327826,1711293034270,-500.0,0.00027238,2]
[320327827,1711293034279,-500.0,0.00027238,2]
[320327828,1711293034288,-705.83,0.00027238,2]
[320327829,1711293034297,-500.0,0.00027238,2]
[320327830,1711293034306,-582.02,0.00027238,2]
[320327831,1711293034315,-596.33,0.00027238,2]
[320327832,1711293034326,-205.18,0.00027281,2]
[320327833,1711293034335,-4302.62,0.00027281,2]
[320327834,1711293034344,-500.0,0.00027397,2]
[320327835,1711293034354,-500.0,0.00027397,2]
[320327836,1711293034363,-500.0,0.00027397,2]
[320327837,1711293034372,-500.0,0.00027397,2]
[320327838,1711293034381,-321.05419001,0.00027397,2]
[320327839,1711293034390,-500.0,0.00027397,2]
[320327840,1711293034399,-500.0,0.00027397,2]
[320327841,1711293034408,-500.0,0.00027397,2]
[320327842,1711293034417,-500.0,0.00027397,2]
[320327843,1711293034426,-500.0,0.00027397,2]
[320327844,1711293034436,-500.0,0.00027397,2]
[320327845,1711293034445,-500.0,0.00027397,2]
[320327846,1711293034454,-499.99999999,0.00027397,2]
[320327847,1711293034463,-1000.0,0.00027397,2]
[320327848,1711293034471,-1000.0,0.00027397,2]
[320327849,1711293034481,-1000.0,0.00027397,2]
[320327850,1711293034490,-1000.0,0.00027397,2]
[320327851,1711293034499,-449.44,0.00027397,2]
[320327852,1711293034508,-512.0,0.00027418,2]
[320327853,1711293034595,-624.82,0.00027418,2]
[320327854,1711293034605,-4082.17,0.00027419,2]
[320327855,1711293034614,-807.26,0.00027419,2]
[320327856,1711293034623,-892.04,0.00027419,2]
[320327857,1711293034632,-2111.63,0.00027419,2]
[320327858,1711293034642,-500.0,0.00027512,2]
[320327859,1711293034652,-500.0,0.00027512,2]
[320327860,1711293034661,-705.83,0.00027512,2]
[320327861,1711293034671,-500.0,0.00027512,2]
[320327862,1711293034680,-582.02,0.00027512,2]
[320327863,1711293034690,-596.33,0.00027512,2]
[320327864,1711293034701,-4302.62,0.00027555,2]
[320327865,1711293034710,-512.0,0.00027692,2]
[320327866,1711293034720,-624.82,0.00027692,2]
[320327867,1711293034729,-4082.17,0.00027693,2]
[320327868,1711293034738,-807.26,0.00027693,2]
[320327869,1711293034748,-892.04,0.00027693,2]
[320327870,1711293034757,-2111.63,0.00027693,2]
[320327871,1711293034766,-500.0,0.00027786,2]
[320327872,1711293034776,-500.0,0.00027786,2]
[320327873,1711293034785,-705.83,0.00027786,2]
[320327874,1711293034795,-500.0,0.00027786,2]
[320327875,1711293034805,-582.02,0.00027786,2]
[320327876,1711293034815,-596.33,0.00027786,2]
[320327877,1711293034827,-500.0,0.00027787,2]
[320327878,1711293034836,-500.0,0.00027787,2]
[320327879,1711293034846,-500.0,0.00027787,2]
[320327880,1711293034856,-500.0,0.00027787,2]
[320327881,1711293034865,-500.0,0.00027787,2]
[320327882,1711293034874,-500.0,0.00027787,2]
[320327883,1711293034885,-500.0,0.00027787,2]
[320327884,1711293034894,-500.0,0.00027787,2]
[320327885,1711293034904,-500.0,0.00027787,2]
[320327886,1711293034913,-500.0,0.00027787,2]
[320327887,1711293034923,-4302.62,0.00027829,2]
[320327888,1711293034932,-2793.43429046,0.00027962,2]
[320327889,1711293034941,-512.0,0.00027966,2]
[320327890,1711293034951,-624.82,0.00027966,2]
[320327891,1711293034960,-4082.17,0.00027967,2]
[320327892,1711293034970,-807.26,0.00027967,2]
[320327893,1711293034979,-892.04,0.00027967,2]
[320327894,1711293034988,-2111.63,0.00027967,2]
[320327895,1711293034997,-500.0,0.0002806,2]
[320327896,1711293035007,-500.0,0.0002806,2]
[320327897,1711293035016,-705.83,0.0002806,2]
[320327898,1711293035026,-500.0,0.0002806,2]
[320327899,1711293035035,-582.02,0.0002806,2]
[320327900,1711293035044,-596.33,0.0002806,2]
[320327901,1711293035054,-500.0,0.00028061,2]
[320327902,1711293035063,-500.0,0.00028061,2]
[320327903,1711293035073,-502.3964733,0.00028061,2]
[320327904,1711293035082,-500.0,0.00028061,2]
[320327905,1711293035092,-500.0,0.00028061,2]
[320327906,1711293035102,-500.0,0.00028061,2]
[320327907,1711293035111,-500.0,0.00028061,2]
[320327908,1711293035121,-500.0,0.00028061,2]
[320327909,1711293035130,-4302.62,0.00028103,2]
[320327910,1711293035140,-512.17840709,0.0002824,2]
[320327911,1711293035150,-624.94,0.0002824,2]
[320327912,1711293035159,-4082.35613913,0.00028241,2]
[320327913,1711293035169,-807.3,0.00028241,2]
[320327914,1711293035178,-892.15363205,0.00028241,2]
[320327915,1711293035187,-2111.68929388,0.00028241,2]
[320327916,1711293035196,-500.0,0.00028334,2]
[320327917,1711293035206,-500.0,0.00028334,2]
[320327918,1711293035215,-705.83,0.00028334,2]
[320327919,1711293035224,-500.0,0.00028334,2]
[320327920,1711293035234,-582.02,0.00028334,2]
[320327921,1711293035243,-596.33,0.00028334,2]
[320327922,1711293035252,-500.0,0.00028335,2]
[320327923,1711293035262,-500.0,0.00028335,2]
[320327924,1711293035271,-529.64,0.00028335,2]
[320327925,1711293035280,-558.06,0.00028335,2]
[320327926,1711293035289,-4302.62,0.00028377,2]
[320327927,1711293035299,-500.0,0.00028608,2]
[320327928,1711293035308,-500.0,0.00028608,2]
[320327929,1711293035317,-705.83,0.00028608,2]
[320327930,1711293035327,-500.0,0.00028608,2]
[320327931,1711293035336,-582.02,0.00028608,2]
[320327932,1711293035346,-596.33,0.00028608,2]
[320327933,1711293035355,-500.0,0.00028609,2]
[320327934,1711293035365,-500.0,0.00028609,2]
[320327935,1711293035374,-4302.62,0.00028651,2]
[320327936,1711293035383,-500.0,0.00028882,2]
[320327937,1711293035393,-705.83,0.00028882,2]
[320327938,1711293035403,-500.0,0.00028882,2]
[320327939,1711293035412,-582.02,0.00028882,2]
[320327940,1711293035422,-596.33,0.00028882,2]
[320327941,1711293035432,-500.0,0.00028883,2]
[320327942,1711293035442,-500.0,0.00028883,2]
[320327943,1711293035453,-1768.02951168,0.000289,2]
[320327944,1711293035463,-4302.62,0.00028925,2]
[320327945,1711293035473,-200.16222349,0.00029,2]
[320327946,1711293035483,-500.0,0.00029156,2]
[320327947,1711293035493,-705.83,0.00029156,2]
[320327948,1711293035502,-500.0,0.00029156,2]
[320327949,1711293035512,-582.02,0.00029156,2]
[320327950,1711293035521,-596.33,0.00029156,2]
[320327951,1711293035531,-500.0,0.00029157,2]
[320327952,1711293035541,-500.0,0.00029157,2]
[320327953,1711293035550,-4302.62,0.00029199,2]
[320327954,1711293035560,-500.0,0.0002943,2]
[320327955,1711293035569,-705.83,0.0002943,2]
[320327956,1711293035579,-500.0,0.0002943,2]
[320327957,1711293035588,-582.02,0.0002943,2]
[320327958,1711293035598,-596.33,0.0002943,2]
[320327959,1711293035612,-500.0,0.00029431,2]
[320327960,1711293035625,-500.0,0.00029431,2]
[320327961,1711293035638,-180.10493952,0.00029447,2]
[320327962,1711293035651,-4302.62,0.00029473,2]
[320327963,1711293035663,-1500.0,0.000295,2]
[320327964,1711293035673,-153.0,0.00029532,2]
[320327965,1711293035684,-153.0,0.00029532,2]
[320327966,1711293035697,-153.0,0.00029532,2]
[320327967,1711293035709,-153.0,0.00029532,2]
[320327968,1711293035724,-500.0,0.00029704,2]
[320327969,1711293035737,-705.83,0.00029704,2]
[320327970,1711293035750,-500.0,0.00029704,2]
[320327971,1711293035763,-582.02,0.00029704,2]
[320327972,1711293035775,-596.33,0.00029704,2]
[320327973,1711293035788,-500.0,0.00029705,2]
[320327974,1711293035802,-231.04,0.00029705,2]
[320327975,1711293035812,-4302.62,0.00029747,2]
[320327976,1711293035825,-236.7497194,0.000299,7]
[320327977,1711293035838,-201.9092036,0.00029925,2]
[320327978,1711293035849,-500.0,0.00029978,2]
[320327979,1711293035862,-705.83,0.00029978,2]
[320327980,1711293035873,-500.0,0.00029978,2]
[320327981,1711293035886,-582.02,0.00029978,2]
[320327982,1711293035897,-596.33,0.00029978,2]
[320327983,1711293035910,-500.0,0.00029979,2]
[320327984,1711293035921,-152.475367,0.00029979,2]
[320327985,1711293035931,-151.0,0.00029979,2]
[320327986,1711293035941,-151.0,0.00029979,2]
[320327987,1711293035953,-154.0,0.0003,2]
[320327988,1711293035966,-4302.62,0.00030021,2]
[320327989,1711293035977,-500.0,0.00030252,2]
[320327990,1711293035989,-705.83,0.00030252,2]
[320327991,1711293036001,-500.0,0.00030252,2]
[320327992,1711293036012,-582.02,0.00030252,2]
[320327993,1711293036022,-596.33,0.00030252,2]
[320327994,1711293036033,-180.10493952,0.00030277,7]
[320327995,1711293036044,-4302.62,0.00030295,2]
[320327996,1711293036056,-396.769747,0.00030297,2]
[320327997,1711293036067,-396.769747,0.00030297,2]
[320327998,1711293036080,-180.10493952,0.0003033,7]
[320327999,1711293036092,-306.0,0.0003042,2]
[320328000,1711293036104,-153.0,0.00030478,2]
[320328001,1711293036116,-500.0,0.00030526,2]
[320328002,1711293036128,-705.83,0.00030526,2]
[320328003,1711293036140,-500.0,0.00030526,2]
[320328004,1711293036151,-582.02,0.00030526,2]
[320328005,1711293036161,-596.33,0.00030526,2]
[320328006,1711293036172,-153.0,0.00030557,2]
[320328007,1711293036182,-201.8484782,0.00030557,2]
[320328008,1711293036193,-201.9092036,0.00030557,2]
[320328009,1711293036204,-201.9092036,0.00030557,2]
[320328010,1711293036216,-201.9092036,0.00030557,2]
[320328011,1711293036227,-201.5448512,0.00030557,2]
[320328012,1711293036238,-4302.62,0.00030569,2]
[320328013,1711293036249,-153.0,0.00030611,2]
[320328014,1711293036261,-500.0,0.000308,2]
[320328015,1711293036272,-705.83,0.000308,2]
[320328016,1711293036283,-500.0,0.000308,2]
[320328017,1711293036293,-582.02,0.000308,2]
[320328018,1711293036304,-596.33,0.000308,2]
[320328019,1711293036314,-253.420987,0.000308,2]
[320328020,1711293036326,-253.420987,0.000308,2]
[320328021,1711293036337,-243.414392,0.000308,2]
[320328022,1711293036347,-243.414392,0.000308,2]
[320328023,1711293036358,-4302.62,0.00030843,2]
[320328024,1711293036368,-14432.64970552,0.00030976,2]
[320328025,1711293036379,-151.0,0.00030976,2]
[320328026,1711293036389,-151.0,0.00030976,2]
[320328027,1711293036399,-339.469608,0.00030976,2]
[320328028,1711293036409,-339.469608,0.00030976,2]
[320328029,1711293036420,-151.0,0.00030976,2]
[320328030,1711293036431,-151.0,0.00030976,2]
[320328031,1711293036445,-500.0,0.00031074,2]
[320328032,1711293036457,-705.83,0.00031074,2]
[320328033,1711293036468,-500.0,0.00031074,2]
[320328034,1711293036480,-582.02,0.00031074,2]
[320328035,1711293036494,-596.33,0.00031074,2]
[320328036,1711293036505,-2675.831015,0.00031074,2]
[320328037,1711293036516,-2675.831015,0.00031074,2]
[320328038,1711293036526,-1008.67559596,0.00031076,4]
[320328039,1711293036538,-4302.62,0.00031117,2]
[320328040,1711293036549,-2136.9748057,0.00031248,2]
[320328041,1711293036560,-500.0,0.00031348,2]
[320328042,1711293036573,-705.83,0.00031348,2]
[320328043,1711293036584,-500.0,0.00031348,2]
[320328044,1711293036595,-582.02,0.00031348,2]
[320328045,1711293036605,-596.33,0.00031348,2]
[320328046,1711293036616,-151.0,0.00031348,2]
[320328047,1711293036627,-1441.780004,0.00031348,2]
[320328048,1711293036637,-1441.780004,0.00031348,2]
[320328049,1711293036648,-4302.78,0.00031391,2]
[320328050,1711293036659,-286.01201747,0.00031505,4]
[320328051,1711293036669,-500.0,0.00031622,2]
[320328052,1711293036680,-705.83,0.00031622,2]
[320328053,1711293036691,-500.0,0.00031622,2]
[320328054,1711293036702,-582.02,0.00031622,2]
[320328055,1711293036712,-596.33,0.00031622,2]
[320328056,1711293036722,-500.0,0.00031896,2]
[320328057,1711293036731,-705.83,0.00031896,2]
[320328058,1711293036741,-500.0,0.00031896,2]
[320328059,1711293036751,-582.02,0.00031896,2]
[320328060,1711293036760,-596.33,0.00031896,2]
[320328061,1711293036770,-500.0,0.0003217,2]
[320328062,1711293036779,-705.83,0.0003217,2]
[320328063,1711293036789,-500.0,0.0003217,2]
[320328064,1711293036911,-582.02,0.0003217,2]
[320328065,1711293036920,-596.33,0.0003217,2]
[320328066,1711293036929,-151.0,0.0003217,2]
[320328067,1711293036938,-151.0,0.0003217,2]
[320328068,1711293036947,-180.10493952,0.00032288,7]
[320328069,1711293036956,-800.0,0.00032327,2]
[320328070,1711293036967,-324.02,0.00032444,2]
[320328071,1711293036976,-705.83,0.00032444,2]
[320328072,1711293036985,-423.59,0.00032444,2]
[320328073,1711293036994,-582.02,0.00032444,2]
[320328074,1711293037003,-596.33,0.00032444,2]
[320328075,1711293037012,-705.83,0.00032718,2]
[320328076,1711293037021,-582.02,0.00032718,2]
[320328077,1711293037030,-596.33,0.00032718,2]
[320328078,1711293037039,-705.83,0.00032992,2]
[320328079,1711293037048,-582.02,0.00032992,2]
[320328080,1711293037057,-596.33,0.00032992,2]
[320328081,1711293037067,-705.83,0.00033266,2]
[320328082,1711293037077,-582.02,0.00033266,2]
[320328083,1711293037086,-596.33,0.00033266,2]
[320328084,1711293037095,-705.9,0.0003354,2]
[320328085,1711293037104,-582.08,0.0003354,2]
[320328086,1711293037114,-596.56,0.0003354,2]
[320328087,1711293037124,-253.420987,0.0003354,2]
[320328088,1711293037135,-253.420987,0.0003354,2]
[320328089,1711293037144,-243.414392,0.0003354,2]
[320328090,1711293037156,-243.414392,0.0003354,2]
[320328091,1711293037167,-865.17829228,0.00034,4]
[320328092,1711293037176,-1075.5130491,0.000345,2]
[320328093,1711293037185,-593.28409045,0.00035,2]
[320328094,1711293037194,-154.8915759,0.00035,4]
[320328095,1711293037203,-23319.0276448,0.00035,30]
[320328096,1711293037289,-825.4181885,0.00035,30]
[320328109,1711293038098,-810.98493516,0.00035,30]
[320328110,1711293038110,-3621.38392236,0.00035,30]
[320328111,1711293038122,-1064.6632347,0.00035,30]
[320328112,1711293038156,-1333.31187516,0.00035,30]
[320328113,1711293038165,-175.13180942,0.00035,30]
[320328114,1711293038175,-942.17703878,0.00035,2]
[320328115,1711293038187,-1106.59575616,0.00035,2]
[320328127,1711293040166,-464.78866184,0.00022487,2]
[320328129,1711293040177,-35.21133816,0.00022487,2]
[320328131,1711293040187,-332.52169984,0.00022761,2]
[320328133,1711293040198,-167.47830016,0.00022761,2]
[320328135,1711293040207,-500.0,0.00023035,2]
[320328137,1711293040216,-422.87681377,0.00023309,2]
[320328139,1711293040228,-77.12318623,0.00023309,2]
[320328141,1711293040237,-500.0,0.00023583,2]
[320328143,1711293040246,-18368.73740311,0.00035,2]
[320328145,1711293040255,-3747.27459739,0.00035,2]
[320328148,1711293040265,-10202.57900678,0.00035,2]
[320328149,1711293040274,-718.17228973,0.00035,2]
[320328151,1711293040283,-26386.29424876,0.00035,7]
[320328168,1711293040433,-2591.31445743,0.00035,7]
[320328170,1711293040442,-151.0,0.00035,2]
[320328172,1711293040451,-156.351955,0.00035,2]
[320328174,1711293040460,-339.469608,0.00035,2]
[320328175,1711293040469,-339.469608,0.00035,2]
[320328176,1711293040479,-151.0,0.00035,2]
[320328177,1711293040488,-151.0,0.00035,2]
[320328178,1711293040497,-396.769747,0.00035,2]
[320328179,1711293040506,-396.769747,0.00035,2]
[320328181,1711293040515,-151.0,0.00035,2]
[320328183,1711293040525,-151.0,0.00035,2]
[320328184,1711293040534,-151.0,0.00035,2]
[320328186,1711293040543,-1441.780004,0.00035,2]
[320328187,1711293040552,-1441.780004,0.00035,2]
[320328188,1711293040561,-2675.831015,0.00035,2]
[320328189,1711293040571,-2675.831015,0.00035,2]
[320328190,1711293040582,-185.716181,0.00035616,120]
[320328191,1711293040591,-254.68292793,0.0003624,2]
[320328192,1711293040601,-1625.49840167,0.00038,4]
[320328193,1711293040610,-150.89437394,0.00039009,2]
[320328194,1711293040619,-301.78874788,0.00039665,4]
[320328195,1711293040628,-154.8915759,0.0004,2]
[320328196,1711293040638,-199.75618316,0.0004,2]
[320328197,1711293040647,-801.44027247,0.0004,2]
[320328198,1711293040656,-10995.86483262,0.0004,20]
[320328199,1711293040666,-2433.96282749,0.0004,2]
[320328200,1711293040680,-2341.48143201,0.0004,2]
[320328201,1711293040700,-2096.31161741,0.0004,2]
[320328202,1711293040718,-27903.68838259,0.0004,2]
[320328203,1711293040727,-151.0,0.0004,2]
[320328204,1711293040737,-396.769747,0.0004,2]
[320328205,1711293040746,-396.769747,0.0004,2]
[320328206,1711293040756,-253.420987,0.0004,2]
[320328207,1711293040766,-253.420987,0.0004,2]
[320328208,1711293040775,-243.414392,0.0004,2]
[320328209,1711293040784,-243.414392,0.0004,2]
[320328210,1711293040794,-151.0,0.0004,2]
[320328211,1711293040806,-35518.18109475,0.0004013,2]
[320328212,1711293040816,-339.469608,0.0004013,2]
[320328213,1711293040826,-339.469608,0.0004013,2]
[320328214,1711293040836,-151.0,0.0004013,2]
[320328215,1711293040846,-189.363108,0.0004013,2]
[320328216,1711293040857,-251.798273,0.0004013,2]
[320328217,1711293040867,-1441.780004,0.0004013,2]
[320328218,1711293040877,-1441.780004,0.0004013,2]
[320328219,1711293040888,-2675.831015,0.0004013,2]
[320328220,1711293040898,-2675.831015,0.0004013,2]
[320328221,1711293040907,-1313.890856,0.00041,30]
[320328222,1711293040917,-500.0,0.00041095,120]
[320328223,1711293040926,-500.0,0.00041095,120]
[320328224,1711293040935,-375.96942995,0.00041095,120]
[320328225,1711293040945,-5064.54,0.00041095,7]
[320328226,1711293040954,-5064.54,0.00041095,7]
[320328227,1711293040963,-5064.54,0.00041095,7]
[320328228,1711293040973,-5064.54,0.00041095,7]
[320328229,1711293040983,-5064.54,0.00041095,7]
[320328230,1711293040992,-5064.54,0.00041095,7]
[320328231,1711293041001,-5064.54,0.00041095,7]
[320328232,1711293041010,-5064.54,0.00041095,7]
[320328233,1711293041020,-5064.54,0.00041095,7]
[320328234,1711293041029,-5064.54,0.00041095,7]
[320328235,1711293041038,-2213.5142537,0.00041095,7]
[320328236,1711293041054,-2851.0257463,0.00041095,7]
[320328237,1711293041064,-5064.54,0.00041095,7]
[320328238,1711293041074,-5064.54,0.00041095,7]
[320328239,1711293041083,-5064.54,0.00041095,7]
[320328240,1711293041093,-554.50566956,0.00041095,7]
[320328241,1711293041107,-4510.03433044,0.00041095,7]
[320328242,1711293041116,-1689.2433569,0.00041095,7]
[320328243,1711293041130,-3375.2966431,0.00041095,7]
[320328244,1711293041139,-5064.54,0.00041095,7]
[320328245,1711293041149,-4176.88347991,0.00041095,7]
[320328246,1711293041163,-887.65652009,0.00041095,7]
[320328247,1711293041173,-5064.54,0.00041095,7]
[320328248,1711293041182,-5064.54,0.00041095,7]
[320328249,1711293041192,-3052.41977768,0.00041095,7]
[320328250,1711293041206,-2012.12022232,0.00041095,7]
[320328251,1711293041215,-1425.3978264,0.00041095,7]
[320328252,1711293041229,-3639.1421736,0.00041095,7]
[320328253,1711293041240,-5064.54,0.00041095,7]
[320328254,1711293041250,-1097.90170311,0.00041095,7]
[320328255,1711293041268,-3966.77898673,0.00041095,7]
[320328256,1711293041277,-151.0,0.00041095,2]
[320328257,1711293041286,-339.469608,0.00041095,2]
[320328258,1711293041295,-339.469608,0.00041095,2]
[320328259,1711293041305,-151.0,0.00041095,2]
[320328260,1711293041316,-396.769747,0.00041095,2]
[320328261,1711293041326,-396.769747,0.00041095,2]
[320328262,1711293041335,-151.0,0.00041095,2]
[320328263,1711293041346,-237.982285,0.00041095,2]
[320328264,1711293041356,-500.0,0.00041095,2]
[320328265,1711293041365,-500.0,0.00041095,2]
[320328266,1711293041374,-500.0,0.00041095,2]
[320328267,1711293041383,-500.0,0.00041095,2]
[320328268,1711293041393,-500.0,0.00041095,2]
[320328269,1711293041402,-323.55629849,0.00041095,2]
[320328270,1711293041412,-253.420987,0.00041095,2]
[320328271,1711293041421,-253.420987,0.00041095,2]
[320328272,1711293041431,-243.414392,0.00041095,2]
[320328273,1711293041441,-243.414392,0.00041095,2]
[320328274,1711293041452,-1137.01084859,0.00041095,2]
[320328275,1711293041467,-304.76915541,0.00041095,2]
[320328276,1711293041477,-1441.780004,0.00041095,2]
[320328277,1711293041486,-2675.831015,0.00041095,2]
[320328278,1711293041495,-2675.831015,0.00041095,2]
[320328279,1711293041505,-151.0,0.00041095,2]
[320328280,1711293041515,-1227.3258205,0.00041096,7]
[320328281,1711293041525,-176.8884132,0.00041096,2]
[320328282,1711293041534,-185.716181,0.00041553,120]
[320328283,1711293041545,-24452.12447553,0.00042,120]
[320328285,1711293042225,-293.35560962,0.00042,120]
[320328286,1711293042236,-404.01179138,0.00042,120]
[320328287,1711293042249,-4202.00559786,0.00042,120]
[320328288,1711293042260,-6774.14341195,0.00042,120]
[320328312,1711293043192,-500.0,0.00027397,2]
[320328314,1711293043202,-202.33935445,0.00027397,2]
[320328316,1711293043211,-679.05639786,0.00042,120]
[320328317,1711293043253,-28974.09086933,0.00042,120]
[320328318,1711293043265,-334.0510005,0.00042,120]
[320328319,1711293043276,-102264.48724816,0.00042,120]
[320328320,1711293043288,-2236.27386278,0.00042,120]
[320328321,1711293043315,-396.85223137,0.00042,120]
[320328334,1711293046215,-343.71143831,0.00024952,2]
[320328335,1711293046224,-450.0,0.00024952,2]
[320328336,1711293046235,-146219.39272355,0.00042,120]
[320328337,1711293046244,-151.0,0.00042,7]
[320328338,1711293046253,-339.469608,0.00042,7]
[320328339,1711293046262,-339.469608,0.00042,7]
[320328340,1711293046271,-151.0,0.00042,7]
[320328341,1711293046280,-396.769747,0.00042,7]
[320328342,1711293046289,-396.769747,0.00042,7]
[320328343,1711293046298,-151.0,0.00042,7]
[320328344,1711293046307,-253.420987,0.00042,7]
[320328345,1711293046317,-253.420987,0.00042,7]